[Event "KAZ-ch Women 2019"]
[Site "Almaty"]
[Date "2019.04.21"]
[Round "1.1"]
[White "Ankudinova, Yelena"]
[Black "Kamalidenova, Meruert"]
[Result "1/2-1/2"]
[ECO "A05"]
[WhiteElo "2099"]
[BlackElo "2051"]
[Annotator "NA"]
[PlyCount "75"]
[EventDate "2019.04.21"]
[EventType "tourn"]
[EventCountry "KAZ"]
[SourceTitle "playchess.com"]
[Source "ChessBase"]
[SourceQuality "1"]
[TimeControl "40/5400+30:1800+30"]

1. Nf3 {[%emt 0:00:00]} Nf6 {[%emt 0:00:00]} 2. c4 {[%emt 0:00:38]} g6 {[%emt 0:00:00]} 3. b3 {[%emt 0:01:19]} Bg7 {[%emt 0:01:06]} 4. Bb2 {[%emt 0:00:09]} O-O {[%emt 0:00:33]} 5. g3 {[%emt 0:00:28]} d6 {[%emt 0:01:54]} 6. Bg2 {[%emt 0:02:11]} e5 {[%emt 0:02:36]} 7. O-O {[%emt 0:01:45]} Nc6 {[%emt 0:01:11]} 8. Nc3 {[%emt 0:09:02]} Be6 {[%emt 0:02:13]} 9. d4 {[%emt 0:05:21]} exd4 {[%emt 0:02:15]} 10. Nxd4 {[%emt 0:05:17]} Nxd4 {[%emt 0:05:20]} 11. Qxd4 {[%emt 0:00:28]} c6 {[%emt 0:01:22]} 12. Rad1 {[%emt 0:05:24]} d5 {[%emt 0:04:26]} 13. cxd5 {[%emt 0:19:07]} Nxd5 {[%emt 0:04:30]} 14. Qxg7+ {[%emt 0:05:51]} Kxg7 {[%emt 0:00:14]} 15. Nxd5+ {[%emt 0:00:05]} f6 {[%emt 0:07:23]} 16. Nxf6 {[%emt 0:00:57]} Rxf6 {[%emt 0:06:43]} 17. Rxd8 {[%emt 0:00:33]} Rxd8 {[%emt 0:01:26]} 18. Bc3 {[%emt 0:10:27]} Kf7 {[%emt 0:04:30]} 19. Be4 {[%emt 0:08:29]} Bh3 {[%emt 0:02:40]} 20. Bxf6 {[%emt 0:01:12]} Kxf6 {[%emt 0:00:04]} 21. Ra1 {[%emt 0:00:46]} Rd2 {[%emt 0:01:45]} 22. Bd3 {[%emt 0:03:47]} Rb2 {[%emt 0:04:34]} 23. f3 {[%emt 0:01:15]} Be6 {[%emt 0:03:37]} 24. Kf2 {[%emt 0:00:25]} a5 {[%emt 0:01:04]} 25. Ke3 {[%emt 0:02:12]} a4 {[%emt 0:06:38]} 26. bxa4 {[%emt 0:00:51]} Bxa2 {[%emt 0:01:17]} 27. Kd4 {[%emt 0:04:23]} Rb4+ {[%emt 0:07:11]} 28. Kc3 {[%emt 0:04:19]} Rxa4 {[%emt 0:00:26]} 29. Bc2 {[%emt 0:02:43]} Ra6 {[%emt 0:00:40]} 30. e4 {[%emt 0:00:29]} Bc4 {[%emt 0:01:55]} 31. Rxa6 {[%emt 0:02:26]} Bxa6 {[%emt 0:00:05]} 32. Kd4 {[%emt 0:00:56]} Be2 {[%emt 0:01:52]} 33. f4 {[%emt 0:00:10]} b6 {[%emt 0:00:25]} 34. Ba4 {[%emt 0:01:12]} c5+ {[%emt 0:05:21]} 35. Kd5 {[%emt 0:00:41]} Ke7 {[%emt 0:01:26]} 36. e5 {[%emt 0:01:00]} b5 {[%emt 0:01:43]} 37. Bc2 {[%emt 0:00:33]} c4 {[%emt 0:00:42]} 38. Ke4 1/2-1/2

[Event "KAZ-ch Women 2019"]
[Site "Almaty"]
[Date "2019.04.21"]
[Round "1.2"]
[White "Nakhbayeva, Guliskhan"]
[Black "Nasybullina, Alfia"]
[Result "1/2-1/2"]
[ECO "A41"]
[WhiteElo "2303"]
[BlackElo "2065"]
[Annotator "NA"]
[PlyCount "215"]
[EventDate "2019.04.21"]
[EventType "tourn"]
[EventCountry "KAZ"]
[SourceTitle "playchess.com"]
[Source "ChessBase"]
[SourceQuality "1"]
[TimeControl "40/5400+30:1800+30"]

1. d4 {[%emt 0:00:00]} d6 {[%emt 0:00:00]} 2. e4 {[%emt 0:00:22]} g6 {[%emt 0:00:00]} 3. c4 {[%emt 0:00:11]} Bg7 {[%emt 0:00:00]} 4. Nc3 {[%emt 0:00:10]} Nd7 {[%emt 0:00:05]} 5. h3 {[%emt 0:02:40]} e5 {[%emt 0:00:06]} 6. d5 {[%emt 0:00:03]} a5 {[%emt 0:00:36]} 7. Bd3 {[%emt 0:00:08]} Ne7 {[%emt 0:00:07]} 8. Nf3 {[%emt 0:04:10]} Nc5 {[%emt 0:01:38]} 9. Bc2 {[%emt 0:00:22]} f5 {[%emt 0:02:45]} 10. exf5 {[%emt 0:01:51]} Nxf5 {[%emt 0:00:32]} 11. Bg5 {[%emt 0:15:09]} Bf6 {[%emt 0:01:47]} 12. Bxf6 {[%emt 0:02:10]} Qxf6 {[%emt 0:00:07]} 13. Nb5 {[%emt 0:00:50]} O-O {[%emt 0:07:13]} 14. O-O {[%emt 0:00:24]} c6 {[%emt 0:23:25]} 15. dxc6 {[%emt 0:10:26]} bxc6 {[%emt 0:00:06]} 16. Bxf5 {[%emt 0:01:41]} Bxf5 {[%emt 0:01:33]} 17. Qxd6 {[%emt 0:00:26]} Qxd6 {[%emt 0:07:25]} 18. Nxd6 {[%emt 0:00:06]} Bd3 {[%emt 0:00:04]} 19. Rfe1 {[%emt 0:01:00]} Rf6 {[%emt 0:04:31]} 20. Rxe5 {[%emt 0:01:08]} Nd7 {[%emt 0:00:04]} 21. Re8+ {[%emt 0:06:25]} Rxe8 {[%emt 0:00:06]} 22. Nxe8 {[%emt 0:00:02]} Re6 {[%emt 0:05:02]} 23. Re1 {[%emt 0:05:20]} Rxe1+ {[%emt 0:01:16]} 24. Nxe1 {[%emt 0:00:04]} Bxc4 {[%emt 0:00:10]} 25. a3 {[%emt 0:05:22]} Nc5 {[%emt 0:05:31]} 26. Nd6 {[%emt 0:04:02]} Bd5 {[%emt 0:01:49]} 27. f3 {[%emt 0:01:44]} Kf8 {[%emt 0:00:14]} 28. Kf2 {[%emt 0:03:37]} Ke7 {[%emt 0:00:56]} 29. Nc8+ {[%emt 0:00:38]} Kd8 {[%emt 0:00:50]} 30. Nd6 {[%emt 0:02:38]} Kd7 {[%emt 0:00:35]} 31. Ne4 {[%emt 0:01:23]} Nxe4+ {[%emt 0:03:20]} 32. fxe4 {[%emt 0:00:03]} Bxe4 {[%emt 0:00:05]} 33. Ke3 {[%emt 0:00:03]} Bd5 {[%emt 0:00:11]} 34. h4 {[%emt 0:07:31]} Kd6 {[%emt 0:00:19]} 35. g4 {[%emt 0:05:25]} Kc5 {[%emt 0:05:58]} 36. g5 {[%emt 0:11:14]} Kc4 {[%emt 0:02:35]} 37. Nd3 {[%emt 0:00:17]} a4 {[%emt 0:01:36]} 38. Nc1 {[%emt 0:00:59]} Bg2 {[%emt 0:02:10]} 39. Kf4 {[%emt 0:03:07]} Kd4 {[%emt 0:01:10]} 40. Ne2+ {[%emt 0:00:21]} Kc4 {[%emt 0:00:48]} 41. Nc1 {[%emt 0:32:11]} Kd4 {[%emt 0:30:05]} 42. Kg3 {[%emt 0:00:00]} Be4 {[%emt 0:00:00]} 43. Kf2 {[%emt 0:00:00]} Bd5 {[%emt 0:00:00]} 44. Ke2 {[%emt 0:00:00]} Ke4 {[%emt 0:00:00]} 45. Kd2 {[%emt 0:00:00]} Kf4 {[%emt 0:00:00]} 46. Nd3+ {[%emt 0:00:00]} Kg4 {[%emt 0:00:00]} 47. Ke3 {[%emt 0:00:00]} Kxh4 {[%emt 0:00:00]} 48. Kf4 {[%emt 0:00:00]} Bb3 {[%emt 0:00:00]} 49. Ne5 {[%emt 0:00:00]} Be6 {[%emt 0:00:00]} 50. Nxc6 {[%emt 0:00:00]} Kh5 {[%emt 0:00:00]} 51. Nd4 {[%emt 0:00:00]} Bc4 {[%emt 0:00:00]} 52. Nf3 {[%emt 0:00:00]} h6 {[%emt 0:00:00]} 53. gxh6 {[%emt 0:00:00]} Kxh6 {[%emt 0:00:00]} 54. Ng5 {[%emt 0:00:00]} Kh5 {[%emt 0:00:00]} 55. Ne4 {[%emt 0:00:00]} Kh4 {[%emt 0:00:00]} 56. Ng5 {[%emt 0:00:00]} Bd5 {[%emt 0:00:00]} 57. Nh7 {[%emt 0:00:00]} Bg2 {[%emt 0:00:00]} 58. Ng5 {[%emt 0:00:00]} Kh5 {[%emt 0:00:00]} 59. Ne6 {[%emt 0:00:00]} Bd5 {[%emt 0:00:00]} 60. Ng5 {[%emt 0:00:08]} Kh6 {[%emt 0:00:00]} 61. Nh3 {[%emt 0:00:37]} Bg2 {[%emt 0:00:37]} 62. Ng5 {[%emt 0:00:05]} Kg7 {[%emt 0:00:07]} 63. Ke5 {[%emt 0:00:24]} Bf1 {[%emt 0:00:50]} 64. Ne4 {[%emt 0:00:47]} Kf7 {[%emt 0:01:00]} 65. Nc3 {[%emt 0:00:36]} Bd3 {[%emt 0:00:13]} 66. Nxa4 {[%emt 0:00:27]} g5 {[%emt 0:00:15]} 67. Nc5 {[%emt 0:00:36]} Be2 {[%emt 0:01:05]} 68. Ne4 {[%emt 0:04:25]} g4 {[%emt 0:00:12]} 69. Ng3 {[%emt 0:03:25]} Bd1 {[%emt 0:00:34]} 70. Nf5 {[%emt 0:00:05]} Be2 {[%emt 0:04:53]} 71. Kf4 {[%emt 0:02:19]} Kf6 {[%emt 0:00:11]} 72. Ne3 {[%emt 0:01:03]} Ke6 {[%emt 0:00:07]} 73. Nxg4 {[%emt 0:00:36]} Kd5 {[%emt 0:00:07]} 74. Ne5 {[%emt 0:02:41]} Kd4 {[%emt 0:02:20]} 75. Kf5 {[%emt 0:01:15]} Kd5 {[%emt 0:01:00]} 76. Kf6 {[%emt 0:01:14]} Bd1 {[%emt 0:00:19]} 77. Nd3 {[%emt 0:00:44]} Kd4 {[%emt 0:03:37]} 78. Ne5 {[%emt 0:00:34]} Kd5 {[%emt 0:00:51]} 79. Kf5 {[%emt 0:00:48]} Bb3 {[%emt 0:01:20]} 80. Kf4 {[%emt 0:00:26]} Bc2 {[%emt 0:01:17]} 81. Nd7 {[%emt 0:00:57]} Kc4 {[%emt 0:01:27]} 82. b4 {[%emt 0:00:18]} Kb5 {[%emt 0:10:17]} 83. Nc5 {[%emt 0:00:14]} Bd1 {[%emt 0:00:22]} 84. Ke3 {[%emt 0:00:25]} Kc4 {[%emt 0:00:18]} 85. Kd2 {[%emt 0:00:17]} Bg4 {[%emt 0:00:18]} 86. Kc2 {[%emt 0:00:02]} Bf5+ {[%emt 0:00:26]} 87. Kb2 {[%emt 0:00:01]} Bg6 {[%emt 0:00:50]} 88. Nd7 {[%emt 0:00:03]} Bf5 {[%emt 0:00:45]} 89. Nb6+ {[%emt 0:01:14]} Kb5 {[%emt 0:00:21]} 90. Nd5 {[%emt 0:00:05]} Bg4 {[%emt 0:02:51]} 91. Nc3+ {[%emt 0:00:50]} Kc4 {[%emt 0:00:08]} 92. Na2 {[%emt 0:01:20]} Bd7 {[%emt 0:00:20]} 93. Nc3 {[%emt 0:00:45]} Bc6 {[%emt 0:00:07]} 94. Nd1 {[%emt 0:00:31]} Bf3 {[%emt 0:01:06]} 95. Ne3+ {[%emt 0:00:09]} Kd4 {[%emt 0:00:18]} 96. Nc2+ {[%emt 0:00:40]} Kc4 {[%emt 0:00:08]} 97. a4 {[%emt 0:00:56]} Be4 {[%emt 0:00:39]} 98. b5 {[%emt 0:00:33]} Bg6 {[%emt 0:01:12]} 99. Ne3+ {[%emt 0:00:19]} Kc5 {[%emt 0:00:42]} 100. Nd1 {[%emt 0:00:37]} Kb4 {[%emt 0:01:55]} 101. Nc3 {[%emt 0:00:05]} Bd3 {[%emt 0:01:42]} 102. Nd5+ {[%emt 0:00:29]} Kxa4 {[%emt 0:00:39]} 103. b6 {[%emt 0:00:12]} Ba6 {[%emt 0:00:05]} 104. Kc3 {[%emt 0:00:33]} Kb5 {[%emt 0:00:13]} 105. Kd4 {[%emt 0:00:04]} Bb7 {[%emt 0:00:13]} 106. Ke5 {[%emt 0:00:10]} Bxd5 {[%emt 0:00:06]} 107. Kxd5 {[%emt 0:00:04]} Kxb6 {[%emt 0:00:04]} 108. Ke4 {[%emt 0:00:00]} 1/2-1/2

[Event "KAZ-ch Women 2019"]
[Site "Almaty"]
[Date "2019.04.21"]
[Round "1.3"]
[White "Sultanbek, Zeinep"]
[Black "Dauletova, Gulmira"]
[Result "0-1"]
[ECO "E04"]
[WhiteElo "1891"]
[BlackElo "2262"]
[Annotator "NA"]
[PlyCount "84"]
[EventDate "2019.04.21"]
[EventType "tourn"]
[EventCountry "KAZ"]
[SourceTitle "playchess.com"]
[Source "ChessBase"]
[SourceQuality "1"]
[TimeControl "40/5400+30:1800+30"]

1. d4 {[%emt 0:00:00]} Nf6 {[%emt 0:00:00]} 2. c4 {[%emt 0:00:00]} e6 {[%emt 0:00:02]} 3. Nf3 {[%emt 0:00:00]} d5 {[%emt 0:00:32]} 4. g3 {[%emt 0:00:15]} dxc4 {[%emt 0:01:04]} 5. Bg2 {[%emt 0:00:42]} Bd7 {[%emt 0:01:56]} 6. Ne5 {[%emt 0:00:22]} Bc6 {[%emt 0:00:12]} 7. Nxc6 {[%emt 0:01:06]} Nxc6 {[%emt 0:00:03]} 8. O-O {[%emt 0:00:15]} Qd7 {[%emt 0:00:20]} 9. e3 {[%emt 0:00:37]} Rd8 {[%emt 0:00:10]} 10. Qe2 {[%emt 0:13:54]} e5 {[%emt 0:01:01]} 11. Nc3 {[%emt 0:07:47]} Be7 {[%emt 0:16:19]} 12. Qxc4 {[%emt 0:05:27]} exd4 {[%emt 0:02:12]} 13. Bxc6 {[%emt 0:10:04]} bxc6 {[%emt 0:05:43]} 14. exd4 {[%emt 0:00:06]} O-O {[%emt 0:02:32]} 15. Be3 {[%emt 0:00:48]} Rb8 {[%emt 0:17:44]} 16. b3 {[%emt 0:02:48]} Rb4 {[%emt 0:00:52]} 17. Qa6 {[%emt 0:00:11]} Ng4 {[%emt 0:08:52]} 18. Qxa7 {[%emt 0:03:36]} Re8 {[%emt 0:14:59]} 19. Rae1 {[%emt 0:11:45]} Bd6 {[%emt 0:08:57]} 20. Qa6 {[%emt 0:07:15]} Rb6 {[%emt 0:04:29]} 21. Qd3 {[%emt 0:02:11]} Bb4 {[%emt 0:00:56]} 22. Bf4 {[%emt 0:00:43]} Rd8 {[%emt 0:00:44]} 23. Re2 {[%emt 0:01:23]} c5 {[%emt 0:01:17]} 24. d5 {[%emt 0:00:43]} h6 {[%emt 0:02:37]} 25. d6 {[%emt 0:04:21]} Bxc3 {[%emt 0:01:41]} 26. Re7 {[%emt 0:00:22]} Rxd6 {[%emt 0:01:40]} 27. Qe2 {[%emt 0:01:42]} Qf5 {[%emt 0:02:06]} 28. Bxd6 {[%emt 0:00:16]} cxd6 {[%emt 0:01:08]} 29. Re4 {[%emt 0:01:59]} h5 {[%emt 0:02:04]} 30. Rf4 {[%emt 0:01:28]} Qd7 {[%emt 0:00:48]} 31. a4 {[%emt 0:01:42]} d5 {[%emt 0:00:37]} 32. Qd3 {[%emt 0:01:41]} Be5 {[%emt 0:00:15]} 33. Rf3 {[%emt 0:00:25]} Bd4 {[%emt 0:00:51]} 34. Rf4 {[%emt 0:01:50]} Be5 {[%emt 0:00:38]} 35. Rf3 {[%emt 0:00:05]} g6 {[%emt 0:00:56]} 36. Re1 {[%emt 0:03:34]} Qc7 {[%emt 0:00:27]} 37. h3 {[%emt 0:02:14]} Nf6 {[%emt 0:00:02]} 38. a5 {[%emt 0:00:28]} Qxa5 {[%emt 0:00:39]} 39. b4 {[%emt 0:00:39]} cxb4 {[%emt 0:00:20]} 40. Kg2 {[%emt 0:00:31]} Qc7 {[%emt 0:00:29]} 41. Rfe3 {[%emt 0:30:56]} Bc3 {[%emt 0:30:21]} 42. R1e2 {[%emt 0:00:28]} Qc4 {[%emt 0:00:59]} 0-1

[Event "KAZ-ch Women 2019"]
[Site "Almaty"]
[Date "2019.04.21"]
[Round "1.4"]
[White "Serikbay, Assel"]
[Black "Davletbayeva, Madina"]
[Result "1-0"]
[ECO "E06"]
[WhiteElo "2155"]
[BlackElo "2286"]
[Annotator "NA"]
[PlyCount "101"]
[EventDate "2019.04.21"]
[EventType "tourn"]
[EventCountry "KAZ"]
[SourceTitle "playchess.com"]
[Source "ChessBase"]
[SourceQuality "1"]
[TimeControl "40/5400+30:1800+30"]

1. d4 {[%emt 0:00:00]} Nf6 {[%emt 0:00:00]} 2. c4 {[%emt 0:00:00]} e6 {[%emt 0:00:04]} 3. g3 {[%emt 0:00:00]} d5 {[%emt 0:00:48]} 4. Nf3 {[%emt 0:00:10]} Be7 {[%emt 0:00:33]} 5. Bg2 {[%emt 0:00:23]} O-O {[%emt 0:00:19]} 6. O-O {[%emt 0:00:14]} dxc4 {[%emt 0:00:56]} 7. Qc2 {[%emt 0:00:29]} a6 {[%emt 0:00:48]} 8. a4 {[%emt 0:00:52]} Bd7 {[%emt 0:01:28]} 9. Qxc4 {[%emt 0:02:20]} Bc6 {[%emt 0:00:54]} 10. Bf4 {[%emt 0:03:21]} a5 {[%emt 0:12:04]} 11. Nc3 {[%emt 0:32:25]} Na6 {[%emt 0:07:25]} 12. Rae1 {[%emt 0:10:55]} Nd5 {[%emt 0:17:45]} 13. Ne5 {[%emt 0:07:24]} Nxf4 {[%emt 0:06:04]} 14. Bxc6 {[%emt 0:12:06]} bxc6 {[%emt 0:06:58]} 15. Nxc6 {[%emt 0:01:41]} Qe8 {[%emt 0:09:51]} 16. gxf4 {[%emt 0:02:11]} Bd6 {[%emt 0:08:06]} 17. Nxa5 {[%emt 0:04:04]} Bxf4 {[%emt 0:03:37]} 18. e3 {[%emt 0:05:43]} Bd6 {[%emt 0:04:43]} 19. e4 {[%emt 0:01:41]} Bf4 {[%emt 0:03:29]} 20. Re2 {[%emt 0:04:48]} Qe7 {[%emt 0:06:24]} 21. Nc6 {[%emt 0:04:04]} Qh4 {[%emt 0:02:34]} 22. f3 {[%emt 0:00:27]} Nb8 {[%emt 0:00:44]} 23. Nxb8 {[%emt 0:03:32]} Raxb8 {[%emt 0:01:13]} 24. b4 {[%emt 0:01:02]} Rfd8 {[%emt 0:01:47]} 25. a5 {[%emt 0:01:23]} Qh6 {[%emt 0:02:15]} 26. d5 {[%emt 0:01:03]} e5 {[%emt 0:00:57]} 27. Kh1 {[%emt 0:00:27]} Qh3 {[%emt 0:00:38]} 28. Rg2 {[%emt 0:00:08]} Rbc8 {[%emt 0:00:59]} 29. Qe2 {[%emt 0:00:56]} Rd6 {[%emt 0:00:17]} 30. a6 {[%emt 0:00:21]} Ra8 {[%emt 0:00:30]} 31. b5 {[%emt 0:00:08]} Rb6 {[%emt 0:00:34]} 32. Rfg1 {[%emt 0:00:19]} g6 {[%emt 0:00:23]} 33. Na4 {[%emt 0:00:28]} Rf6 {[%emt 0:00:15]} 34. Nc5 {[%emt 0:00:28]} Qh6 {[%emt 0:00:27]} 35. Nd3 {[%emt 0:00:22]} Be3 {[%emt 0:00:13]} 36. Nxe5 {[%emt 0:00:18]} Bxg1 {[%emt 0:01:01]} 37. Ng4 {[%emt 0:00:11]} Qf4 {[%emt 0:00:18]} 38. Nxf6+ {[%emt 0:00:05]} Qxf6 {[%emt 0:00:11]} 39. Rxg1 {[%emt 0:00:05]} Qb6 {[%emt 0:00:32]} 40. Rc1 {[%emt 0:00:43]} Qa5 {[%emt 0:00:40]} 41. e5 {[%emt 0:04:16]} Re8 {[%emt 0:02:31]} 42. Qb2 {[%emt 0:01:22]} Qb6 {[%emt 0:01:12]} 43. Re1 {[%emt 0:08:57]} Qc5 {[%emt 0:01:41]} 44. d6 {[%emt 0:02:49]} cxd6 {[%emt 0:04:22]} 45. b6 {[%emt 0:00:04]} Qd5 {[%emt 0:06:10]} 46. Kg2 {[%emt 0:01:47]} Qa8 {[%emt 0:15:25]} 47. b7 {[%emt 0:01:35]} Qb8 {[%emt 0:00:21]} 48. exd6 {[%emt 0:05:27]} Rxe1 {[%emt 0:01:30]} 49. a7 {[%emt 0:00:05]} Rg1+ {[%emt 0:01:21]} 50. Kxg1 {[%emt 0:00:04]} Qxa7+ {[%emt 0:00:04]} 51. Kg2 {[%emt 0:00:05]} 1-0

[Event "KAZ-ch Women 2019"]
[Site "Almaty"]
[Date "2019.04.21"]
[Round "1.5"]
[White "Shauken, Aruzhan"]
[Black "Kairbekova, Amina"]
[Result "0-1"]
[ECO "E04"]
[WhiteElo "1685"]
[BlackElo "1954"]
[Annotator "NA"]
[PlyCount "84"]
[EventDate "2019.04.21"]
[EventType "tourn"]
[EventCountry "KAZ"]
[SourceTitle "playchess.com"]
[Source "ChessBase"]
[SourceQuality "1"]
[TimeControl "40/5400+30:1800+30"]

1. d4 {[%emt 0:00:00]} Nf6 {[%emt 0:00:00]} 2. c4 {[%emt 0:00:00]} e6 {[%emt 0:00:00]} 3. g3 {[%emt 0:00:00]} d5 {[%emt 0:00:00]} 4. Nf3 {[%emt 0:00:15]} dxc4 {[%emt 0:00:00]} 5. Bg2 {[%emt 0:00:04]} Bd7 {[%emt 0:00:00]} 6. Ne5 {[%emt 0:00:08]} Bc6 {[%emt 0:00:01]} 7. Nxc6 {[%emt 0:00:24]} Nxc6 {[%emt 0:00:01]} 8. O-O Qd7 9. e3 {[%emt 0:00:47]} Rd8 {[%emt 0:00:02]} 10. Qc2 {[%emt 0:06:04]} b5 {[%emt 0:00:16]} 11. b3 {[%emt 0:05:46]} Nb4 {[%emt 0:00:35]} 12. Qe2 {[%emt 0:01:08]} cxb3 {[%emt 0:07:51]} 13. axb3 {[%emt 0:00:22]} c6 {[%emt 0:00:35]} 14. Ba3 {[%emt 0:04:33]} Nfd5 {[%emt 0:05:49]} 15. e4 {[%emt 0:05:30]} Nb6 {[%emt 0:00:02]} 16. Rd1 {[%emt 0:00:48]} Be7 {[%emt 0:02:01]} 17. Qd2 {[%emt 0:15:58]} a5 {[%emt 0:02:23]} 18. Bb2 {[%emt 0:01:50]} a4 {[%emt 0:03:47]} 19. Bc3 {[%emt 0:00:21]} c5 {[%emt 0:17:47]} 20. dxc5 {[%emt 0:03:57]} Qxd2 {[%emt 0:00:49]} 21. Rxd2 {[%emt 0:00:29]} Rxd2 {[%emt 0:08:50]} 22. Nxd2 {[%emt 0:00:23]} Bxc5 {[%emt 0:00:21]} 23. Bxg7 {[%emt 0:03:33]} Rg8 {[%emt 0:00:17]} 24. Bf6 {[%emt 0:01:50]} Rg6 {[%emt 0:15:21]} 25. e5 {[%emt 0:03:25]} Rxf6 {[%emt 0:00:23]} 26. exf6 {[%emt 0:00:14]} Bd4 {[%emt 0:00:02]} 27. Rc1 {[%emt 0:08:22]} a3 {[%emt 0:01:45]} 28. Ne4 {[%emt 0:01:46]} a2 {[%emt 0:01:40]} 29. Bf1 {[%emt 0:01:30]} a1=Q {[%emt 0:02:37]} 30. Rxa1 {[%emt 0:00:23]} Bxa1 {[%emt 0:00:03]} 31. Bxb5+ {[%emt 0:00:14]} Kf8 {[%emt 0:00:53]} 32. g4 {[%emt 0:01:06]} N6d5 {[%emt 0:01:20]} 33. g5 {[%emt 0:00:57]} Nc3 {[%emt 0:00:09]} 34. Nxc3 {[%emt 0:00:57]} Bxc3 {[%emt 0:00:05]} 35. Kg2 {[%emt 0:00:09]} Bd2 {[%emt 0:00:58]} 36. h4 {[%emt 0:00:08]} h6 {[%emt 0:00:21]} 37. gxh6 {[%emt 0:01:26]} Bxh6 {[%emt 0:00:11]} 38. Kg3 {[%emt 0:00:07]} Nd5 {[%emt 0:00:13]} 39. Bc6 {[%emt 0:00:54]} Nxf6 {[%emt 0:00:42]} 40. b4 {[%emt 0:00:05]} Ke7 {[%emt 0:00:08]} 41. b5 {[%emt 0:30:20]} Kd6 {[%emt 0:30:06]} 42. Bf3 {[%emt 0:00:54]} Kc5 {[%emt 0:00:36]} 0-1

[Event "KAZ-ch Women 2019"]
[Site "Almaty"]
[Date "2019.04.22"]
[Round "2.1"]
[White "Kamalidenova, Meruert"]
[Black "Kairbekova, Amina"]
[Result "1/2-1/2"]
[ECO "E04"]
[WhiteElo "2051"]
[BlackElo "1954"]
[Annotator "NA"]
[PlyCount "124"]
[EventDate "2019.04.21"]
[EventType "tourn"]
[EventCountry "KAZ"]
[SourceTitle "playchess.com"]
[Source "ChessBase"]
[SourceQuality "1"]
[TimeControl "40/5400+30:1800+30"]

1. d4 {[%emt 0:00:00]} Nf6 {[%emt 0:00:00]} 2. c4 {[%emt 0:00:00]} e6 {[%emt 0:00:00]} 3. Nf3 {[%emt 0:00:00]} d5 {[%emt 0:00:00]} 4. g3 {[%emt 0:00:00]} dxc4 {[%emt 0:00:00]} 5. Bg2 {[%emt 0:00:05]} Bd7 {[%emt 0:00:00]} 6. Ne5 {[%emt 0:00:22]} Bc6 {[%emt 0:00:00]} 7. Nxc6 {[%emt 0:00:28]} Nxc6 {[%emt 0:00:00]} 8. e3 {[%emt 0:01:05]} Qd7 {[%emt 0:00:00]} 9. O-O {[%emt 0:00:13]} Rd8 {[%emt 0:00:00]} 10. Qc2 {[%emt 0:00:59]} b5 {[%emt 0:00:03]} 11. a4 {[%emt 0:00:52]} Nb4 {[%emt 0:00:20]} 12. Qe2 {[%emt 0:00:46]} a6 {[%emt 0:00:04]} 13. axb5 {[%emt 0:01:10]} axb5 {[%emt 0:00:09]} 14. b3 {[%emt 0:01:16]} cxb3 {[%emt 0:00:05]} 15. Nd2 {[%emt 0:00:22]} Be7 {[%emt 0:01:32]} 16. Nxb3 {[%emt 0:00:39]} O-O {[%emt 0:00:16]} 17. Ba3 {[%emt 0:01:14]} c6 {[%emt 0:04:13]} 18. Rfc1 {[%emt 0:01:54]} Rc8 {[%emt 0:00:15]} 19. e4 {[%emt 0:07:56]} Rfd8 {[%emt 0:05:57]} 20. Qf3 {[%emt 0:07:59]} e5 {[%emt 0:13:40]} 21. dxe5 {[%emt 0:07:38]} Ng4 {[%emt 0:00:02]} 22. Bh3 {[%emt 0:02:10]} Nxe5 {[%emt 0:10:39]} 23. Qh5 {[%emt 0:00:34]} Qc7 {[%emt 0:01:26]} 24. Bxb4 {[%emt 0:02:55]} g6 {[%emt 0:05:30]} 25. Qe2 {[%emt 0:01:39]} Bxb4 {[%emt 0:01:03]} 26. Bxc8 {[%emt 0:00:40]} Qxc8 {[%emt 0:00:26]} 27. Rd1 {[%emt 0:02:58]} Re8 {[%emt 0:00:05]} 28. Kg2 {[%emt 0:04:58]} Nc4 {[%emt 0:03:01]} 29. Ra7 {[%emt 0:02:14]} Qe6 {[%emt 0:03:29]} 30. Nd4 {[%emt 0:03:02]} Qxe4+ {[%emt 0:01:20]} 31. Qxe4 {[%emt 0:00:06]} Rxe4 {[%emt 0:00:03]} 32. Nxc6 {[%emt 0:00:09]} Bc5 {[%emt 0:00:23]} 33. Rb7 {[%emt 0:01:38]} Re2 {[%emt 0:02:15]} 34. Rd8+ {[%emt 0:04:30]} Kg7 {[%emt 0:00:07]} 35. Nd4 {[%emt 0:00:48]} Re5 {[%emt 0:13:48]} 36. f4 {[%emt 0:18:47]} Re4 {[%emt 0:01:18]} 37. Nxb5 {[%emt 0:01:12]} Re2+ {[%emt 0:00:15]} 38. Kh3 {[%emt 0:00:28]} Bg1 {[%emt 0:02:25]} 39. Rdd7 {[%emt 0:00:48]} Rxh2+ {[%emt 0:01:08]} 40. Kg4 {[%emt 0:00:00]} h5+ {[%emt 0:00:00]} 41. Kf3 {[%emt 0:01:45]} Nd2+ {[%emt 0:00:49]} 42. Rxd2 {[%emt 0:00:05]} Rxd2 {[%emt 0:03:01]} 43. Rc7 {[%emt 0:01:18]} Bb6 {[%emt 0:04:21]} 44. Rc6 {[%emt 0:05:04]} Rf2+ {[%emt 0:01:02]} 45. Ke4 {[%emt 0:01:51]} Bd8 {[%emt 0:00:09]} 46. Nd6 {[%emt 0:01:12]} Re2+ {[%emt 0:05:25]} 47. Kf3 {[%emt 0:01:24]} Re6 {[%emt 0:00:07]} 48. f5 {[%emt 0:00:24]} Re1 {[%emt 0:08:53]} 49. fxg6 {[%emt 0:01:46]} fxg6 {[%emt 0:00:16]} 50. Ne4 {[%emt 0:00:44]} g5 {[%emt 0:02:48]} 51. Rd6 {[%emt 0:03:19]} g4+ {[%emt 0:03:33]} 52. Kf2 {[%emt 0:00:07]} Rxe4 {[%emt 0:00:03]} 53. Rxd8 {[%emt 0:00:08]} Re6 {[%emt 0:00:45]} 54. Rd5 {[%emt 0:00:21]} Kg6 {[%emt 0:00:04]} 55. Ra5 {[%emt 0:00:53]} Rf6+ {[%emt 0:00:05]} 56. Kg2 {[%emt 0:00:14]} Rf5 {[%emt 0:00:35]} 57. Ra6+ {[%emt 0:00:29]} Kg5 {[%emt 0:00:06]} 58. Ra8 {[%emt 0:00:07]} Rd5 {[%emt 0:00:45]} 59. Rf8 {[%emt 0:00:34]} Rd2+ {[%emt 0:00:24]} 60. Kg1 {[%emt 0:00:09]} Rd6 {[%emt 0:06:11]} 61. Kg2 {[%emt 0:00:18]} Rf6 {[%emt 0:00:11]} 62. Ra8 {[%emt 0:00:15]} Rd6 {[%emt 0:01:22]} 1/2-1/2